fUST/lending_fUST_20250822
["ID","MTS","AMOUNT","RATE_DAILY","PERIOD"]
[380541745,1755804641870,-480.0,0.00019178,2]
[380541747,1755804641879,-496.35688834,0.00019178,2]
[380541749,1755804641892,-480.0,0.00019178,2]
[380541751,1755804641903,-502.68975062,0.00019178,2]
[380541753,1755804641912,-480.0,0.00019178,2]
[380541755,1755804641921,-480.0,0.00019178,2]
[380541757,1755804641931,-480.0,0.00019178,2]
[380541759,1755804641941,-480.0,0.00019178,2]
[380541761,1755804641951,-2794.42,0.00019178,2]
[380541763,1755804641960,-241.91185123,0.00019178,2]
[380541765,1755804641969,-1131.25,0.00019178,2]
[380541767,1755804641979,-480.0,0.00019178,2]
[380541769,1755804641988,-480.0,0.00019178,2]
[380541771,1755804641998,-480.0,0.00019178,2]
[380541773,1755804642007,-480.0,0.00019178,2]
[380541775,1755804642016,-480.0,0.00019178,2]
[380541777,1755804642026,-480.0,0.00019178,2]
[380541779,1755804642035,-416.02334464,0.00019178,2]
[380541781,1755804642045,-480.0,0.00019178,2]
[380541783,1755804642054,-480.0,0.00019178,2]
[380541785,1755804642064,-480.0,0.00019178,2]
[380541787,1755804642073,-480.0,0.00019178,2]
[380541789,1755804642082,-441.16948472,0.00019178,2]
[380541791,1755804642092,-903.44,0.00019178,2]
[380541793,1755804642101,-480.0,0.00019178,2]
[380541795,1755804642110,-480.0,0.00019178,2]
[380541797,1755804642120,-480.0,0.00019178,2]
[380541799,1755804642130,-480.0,0.00019178,2]
[380541801,1755804642139,-480.0,0.00019178,2]
[380541803,1755804642148,-480.0,0.00019178,2]
[380541805,1755804642157,-480.0,0.00019178,2]
[380541807,1755804642167,-393.41799012,0.00019178,2]
[380541809,1755804642178,-565.49961659,0.00019178,2]
[380541811,1755804642188,-480.0,0.00019178,2]
[380541813,1755804642197,-480.0,0.00019178,2]
[380541815,1755804642207,-480.0,0.00019178,2]
[380541817,1755804642216,-480.0,0.00019178,2]
[380541819,1755804642225,-581.32,0.00019178,2]
[380541821,1755804642236,-480.0,0.00019178,2]
[380541822,1755804642246,-480.0,0.00019178,2]
[380541824,1755804642256,-480.0,0.00019178,2]
[380541825,1755804642266,-480.0,0.00019178,2]
[380541827,1755804642275,-480.0,0.00019178,2]
[380541830,1755804642285,-480.0,0.00019178,2]
[380541832,1755804642295,-480.0,0.00019178,2]
[380541834,1755804642304,-522.59,0.00019178,2]
[380541836,1755804642314,-480.0,0.00019178,2]
[380541838,1755804642325,-500.0,0.00019178,2]
[380541841,1755804642335,-5000.0,0.00019178,2]
[380541844,1755804642344,-300.0,0.000192,2]
[380541847,1755804642354,-3000.0,0.000192,2]
[380541849,1755804642364,-3000.0,0.000192,2]
[380541852,1755804642374,-220.0,0.00019226,2]
[380541855,1755804642383,-220.0,0.00019326,2]
[380541860,1755804642393,-5643.93785675,0.00019352,2]
[380541864,1755804642402,-1188.93766451,0.00019352,2]
[380541868,1755804642412,-480.0,0.00019451,2]
[380541871,1755804642423,-500.0,0.00019451,2]
[380541873,1755804642433,-500.0,0.00019451,2]
[380541875,1755804642442,-584.38,0.00019451,2]
[380541878,1755804642452,-584.38,0.00019451,2]
[380541881,1755804642462,-584.38,0.00019451,2]
[380541884,1755804642471,-169.74163018,0.00019451,2]
[380541888,1755804642480,-500.0,0.00019451,2]
[380541890,1755804642489,-500.0,0.00019451,2]
[380541892,1755804642499,-500.0,0.00019451,2]
[380541894,1755804642508,-500.0,0.00019451,2]
[380541896,1755804642516,-500.0,0.00019451,2]
[380541898,1755804642527,-500.0,0.00019451,2]
[380541901,1755804642536,-500.0,0.00019451,2]
[380541903,1755804642546,-500.0,0.00019451,2]
[380541905,1755804642555,-500.0,0.00019451,2]
[380541907,1755804642563,-176.00145818,0.00019451,2]
[380541909,1755804642573,-500.0,0.00019451,2]
[380541911,1755804642583,-500.0,0.00019451,2]
[380541912,1755804642592,-500.0,0.00019451,2]
[380541914,1755804642601,-500.0,0.00019451,2]
[380541916,1755804642611,-500.0,0.00019451,2]
[380541918,1755804642621,-500.0,0.00019451,2]
[380541920,1755804642630,-500.0,0.00019451,2]
[380541922,1755804642639,-151.0,0.00019452,2]
[380541924,1755804642648,-151.0,0.00019452,2]
[380541926,1755804642658,-151.0,0.00019452,2]
[380541928,1755804642668,-500.0,0.00019452,2]
[380541930,1755804642679,-500.0,0.00019452,2]
[380541932,1755804642688,-500.0,0.00019452,2]
[380541934,1755804642697,-151.0,0.00019452,2]
[380541936,1755804642706,-500.0,0.00019452,2]
[380541938,1755804642715,-500.0,0.00019452,2]
[380541940,1755804642725,-500.0,0.00019452,2]
[380541942,1755804642734,-998.0,0.00019452,2]
[380541944,1755804642743,-500.0,0.00019452,2]
[380541946,1755804642752,-151.0,0.00019452,2]
[380541947,1755804642762,-151.0,0.00019452,2]
[380541949,1755804642771,-151.0,0.00019452,2]
[380541951,1755804642780,-151.0,0.00019452,2]
[380541953,1755804642790,-151.0,0.00019452,2]
[380541955,1755804642799,-151.0,0.00019452,2]
[380541957,1755804642808,-281.14,0.00019452,2]
[380541959,1755804642817,-480.0,0.00019452,2]
[380541961,1755804642830,-480.0,0.00019452,2]
[380541963,1755804642839,-480.0,0.00019452,2]
[380541965,1755804642848,-480.0,0.00019452,2]
[380541967,1755804642858,-530.44,0.00019452,2]
[380541969,1755804642867,-480.0,0.00019452,2]
[380541970,1755804642876,-480.0,0.00019452,2]
[380541972,1755804642885,-480.0,0.00019452,2]
[380541974,1755804642894,-480.0,0.00019452,2]
[380541976,1755804642906,-480.0,0.00019452,2]
[380541978,1755804642915,-480.0,0.00019452,2]
[380541980,1755804642924,-480.0,0.00019452,2]
[380541982,1755804642935,-480.0,0.00019452,2]
[380541984,1755804642944,-480.0,0.00019452,2]
[380541986,1755804642953,-480.0,0.00019452,2]
[380541988,1755804642962,-480.0,0.00019452,2]
[380541990,1755804642971,-480.0,0.00019452,2]
[380541992,1755804642981,-480.0,0.00019452,2]
[380541994,1755804642990,-480.0,0.00019452,2]
[380541996,1755804642999,-480.0,0.00019452,2]
[380541997,1755804643008,-535.16,0.00019452,2]
[380541999,1755804643017,-480.0,0.00019452,2]
[380542001,1755804643026,-480.0,0.00019452,2]
[380542003,1755804643035,-480.0,0.00019452,2]
[380542005,1755804643044,-443.66953913,0.00019452,2]
[380542007,1755804643053,-480.0,0.00019452,2]
[380542009,1755804643062,-480.0,0.00019452,2]
[380542011,1755804643071,-621.55,0.00019452,2]
[380542013,1755804643080,-480.0,0.00019452,2]
[380542015,1755804643089,-480.0,0.00019452,2]
[380542017,1755804643099,-480.0,0.00019452,2]
[380542019,1755804643107,-480.0,0.00019452,2]
[380542022,1755804643117,-480.0,0.00019452,2]
[380542023,1755804643126,-480.0,0.00019452,2]
[380542025,1755804643135,-480.0,0.00019452,2]
[380542027,1755804643144,-480.0,0.00019452,2]
[380542029,1755804643154,-480.0,0.00019452,2]
[380542031,1755804643163,-480.0,0.00019452,2]
[380542033,1755804643171,-480.0,0.00019452,2]
[380542035,1755804643182,-480.0,0.00019452,2]
[380542037,1755804643192,-480.0,0.00019452,2]
[380542039,1755804643201,-480.0,0.00019452,2]
[380542041,1755804643210,-480.0,0.00019452,2]
[380542042,1755804643219,-999.07,0.00019452,2]
[380542044,1755804643228,-480.0,0.00019452,2]
[380542046,1755804643238,-480.0,0.00019452,2]
[380542048,1755804643248,-480.0,0.00019452,2]
[380542050,1755804643257,-480.0,0.00019452,2]
[380542052,1755804643266,-480.0,0.00019452,2]
[380542054,1755804643276,-480.0,0.00019452,2]
[380542056,1755804643285,-480.0,0.00019452,2]
[380542057,1755804643294,-480.0,0.00019452,2]
[380542059,1755804643303,-480.0,0.00019452,2]
[380542061,1755804643312,-480.0,0.00019452,2]
[380542063,1755804643321,-846.21,0.00019452,2]
[380542065,1755804643331,-480.0,0.00019452,2]
[380542067,1755804643341,-1141.39,0.00019452,2]
[380542069,1755804643350,-480.0,0.00019452,2]
[380542071,1755804643359,-480.0,0.00019452,2]
[380542073,1755804643368,-522.5869573,0.00019452,2]
[380542075,1755804643377,-480.0,0.00019452,2]
[380542077,1755804643386,-480.0,0.00019452,2]
[380542079,1755804643395,-480.0,0.00019452,2]
[380542080,1755804643404,-497.27,0.00019452,2]
[380542082,1755804643413,-480.0,0.00019452,2]
[380542084,1755804643422,-480.0,0.00019452,2]
[380542086,1755804643433,-480.0,0.00019452,2]
[380542088,1755804643442,-480.0,0.00019452,2]
[380542090,1755804643451,-482.71,0.00019452,2]
[380542092,1755804643460,-480.0,0.00019452,2]
[380542094,1755804643469,-480.0,0.00019452,2]
[380542096,1755804643478,-1996.08,0.00019452,2]
[380542098,1755804643487,-440.0,0.00019452,2]
[380542100,1755804643497,-480.0,0.00019452,2]
[380542102,1755804643506,-480.0,0.00019452,2]
[380542104,1755804643515,-480.0,0.00019452,2]
[380542105,1755804643523,-1366.68,0.00019452,2]
[380542107,1755804643533,-809.45,0.00019452,2]
[380542109,1755804643542,-480.0,0.00019452,2]
[380542111,1755804643551,-480.0,0.00019452,2]
[380542113,1755804643560,-480.0,0.00019452,2]
[380542115,1755804643569,-480.0,0.00019452,2]
[380542117,1755804643578,-480.0,0.00019452,2]
[380542119,1755804643587,-480.0,0.00019452,2]
[380542121,1755804643596,-480.0,0.00019452,2]
[380542123,1755804643605,-480.0,0.00019452,2]
[380542125,1755804643614,-480.0,0.00019452,2]
[380542127,1755804643623,-480.0,0.00019452,2]
[380542128,1755804643632,-3695.25,0.00019452,2]
[380542130,1755804643642,-480.0,0.00019452,2]
[380542132,1755804643650,-807.99,0.00019452,2]
[380542134,1755804643659,-1089.82,0.00019452,2]
[380542136,1755804643670,-480.0,0.00019452,2]
[380542138,1755804643680,-480.0,0.00019452,2]
[380542140,1755804643689,-480.0,0.00019452,2]
[380542142,1755804643698,-480.0,0.00019452,2]
[380542144,1755804643707,-480.0,0.00019452,2]
[380542146,1755804643716,-1576.4,0.00019452,2]
[380542147,1755804643725,-480.0,0.00019452,2]
[380542149,1755804643735,-480.0,0.00019452,2]
[380542151,1755804643745,-633.84,0.00019452,2]
[380542153,1755804643754,-3977.75,0.00019452,2]
[380542155,1755804643763,-480.0,0.00019452,2]
[380542157,1755804643772,-480.0,0.00019452,2]
[380542159,1755804643780,-480.0,0.00019452,2]
[380542161,1755804643789,-699.28,0.00019452,2]
[380542163,1755804643799,-480.0,0.00019452,2]
[380542165,1755804643808,-950.77,0.00019452,2]
[380542167,1755804643817,-480.0,0.00019452,2]
[380542168,1755804643836,-480.0,0.00019452,2]
[380542170,1755804643847,-480.0,0.00019452,2]
[380542172,1755804643857,-480.0,0.00019452,2]
[380542174,1755804643868,-480.0,0.00019452,2]
[380542176,1755804643878,-480.0,0.00019452,2]
[380542178,1755804643887,-480.0,0.00019452,2]
[380542180,1755804643897,-480.0,0.00019452,2]
[380542181,1755804643907,-480.0,0.00019452,2]
[380542183,1755804643918,-480.0,0.00019452,2]
[380542185,1755804643929,-436.75460616,0.00019452,2]
[380542187,1755804643940,-480.0,0.00019452,2]
[380542189,1755804643949,-480.0,0.00019452,2]
[380542191,1755804643958,-480.0,0.00019452,2]
[380542193,1755804643967,-2794.42,0.00019452,2]
[380542194,1755804643976,-1131.25,0.00019452,2]
[380542196,1755804643986,-480.0,0.00019452,2]
[380542197,1755804643996,-480.0,0.00019452,2]
[380542198,1755804644005,-903.44,0.00019452,2]
[380542199,1755804644014,-480.0,0.00019452,2]
[380542200,1755804644023,-480.0,0.00019452,2]
[380542201,1755804644032,-480.0,0.00019452,2]
[380542202,1755804644041,-480.0,0.00019452,2]
[380542203,1755804644050,-480.0,0.00019452,2]
[380542204,1755804644059,-581.32,0.00019452,2]
[380542205,1755804644068,-480.0,0.00019452,2]
[380542206,1755804644077,-522.59,0.00019452,2]
[380542207,1755804644085,-500.0,0.00019452,2]
[380542208,1755804644094,-37087.57075603,0.00019599,2]
[380542209,1755804644103,-1000.0,0.00019626,2]
[380542210,1755804644112,-24057.60217417,0.00019626,2]
[380542211,1755804644120,-1188.9376645,0.00019664,2]
[380542212,1755804644130,-584.38,0.00019725,2]
[380542213,1755804644139,-584.38,0.00019725,2]
[380542214,1755804644147,-265.7819686,0.00019726,2]
[380542215,1755804644156,-213.45675265,0.00019726,2]
[380542216,1755804644165,-151.0,0.00019726,2]
[380542217,1755804644176,-500.0,0.00019726,2]
[380542218,1755804644184,-500.0,0.00019726,2]
[380542219,1755804644193,-402.791262,0.00019726,2]
[380542220,1755804644202,-250.61433319,0.00019726,2]
[380542221,1755804644211,-500.0,0.00019726,2]
[380542222,1755804644220,-500.0,0.00019726,2]
[380542223,1755804644230,-500.0,0.00019726,2]
[380542224,1755804644239,-998.0,0.00019726,2]
[380542225,1755804644249,-500.0,0.00019726,2]
[380542226,1755804644258,-151.0,0.00019726,2]
[380542227,1755804644267,-198.86680626,0.00019726,2]
[380542228,1755804644277,-151.0,0.00019726,2]
[380542229,1755804644287,-151.0,0.00019726,2]
[380542230,1755804644297,-151.0,0.00019726,2]
[380542231,1755804644307,-371.57085369,0.00019726,2]
[380542232,1755804644316,-480.0,0.00019726,2]
[380542233,1755804644325,-480.0,0.00019726,2]
[380542234,1755804644334,-480.0,0.00019726,2]
[380542235,1755804644343,-480.0,0.00019726,2]
[380542236,1755804644352,-565.86,0.00019726,2]
[380542237,1755804644361,-625.07,0.00019726,2]
[380542238,1755804644370,-480.0,0.00019726,2]
[380542239,1755804644379,-480.0,0.00019726,2]
[380542240,1755804644388,-295.81,0.00019726,2]
[380542241,1755804644397,-480.0,0.00019726,2]
[380542242,1755804644406,-535.16,0.00019726,2]
[380542243,1755804644415,-480.0,0.00019726,2]
[380542244,1755804644424,-480.0,0.00019726,2]
[380542245,1755804644436,-378.40281443,0.00019726,2]
[380542246,1755804644445,-480.0,0.00019726,2]
[380542254,1755804644564,-480.0,0.00019726,2]
[380542256,1755804644587,-480.0,0.00019726,2]
[380542258,1755804644596,-480.0,0.00019726,2]
[380542260,1755804644606,-480.0,0.00019726,2]
[380542262,1755804644615,-556.05,0.00019726,2]
[380542264,1755804644624,-480.0,0.00019726,2]
[380542266,1755804644634,-999.07,0.00019726,2]
[380542268,1755804644643,-480.0,0.00019726,2]
[380542270,1755804644652,-480.0,0.00019726,2]
[380542272,1755804644661,-480.0,0.00019726,2]
[380542273,1755804644670,-480.0,0.00019726,2]
[380542275,1755804644680,-846.21,0.00019726,2]
[380542277,1755804644691,-480.0,0.00019726,2]
[380542279,1755804644700,-1141.39,0.00019726,2]
[380542281,1755804644710,-480.0,0.00019726,2]
[380542283,1755804644719,-480.0,0.00019726,2]
[380542285,1755804644728,-480.0,0.00019726,2]
[380542287,1755804644738,-480.0,0.00019726,2]
[380542289,1755804644747,-497.27,0.00019726,2]
[380542291,1755804644757,-480.0,0.00019726,2]
[380542293,1755804644766,-480.0,0.00019726,2]
[380542295,1755804644775,-482.71,0.00019726,2]
[380542297,1755804644784,-480.0,0.00019726,2]
[380542299,1755804644793,-1996.08,0.00019726,2]
[380542301,1755804644803,-480.0,0.00019726,2]
[380542303,1755804644812,-480.0,0.00019726,2]
[380542305,1755804644823,-1366.68,0.00019726,2]
[380542306,1755804644834,-809.45,0.00019726,2]
[380542308,1755804644843,-480.0,0.00019726,2]
[380542310,1755804644853,-480.0,0.00019726,2]
[380542312,1755804644862,-480.0,0.00019726,2]
[380542314,1755804644871,-480.0,0.00019726,2]
[380542316,1755804644880,-480.0,0.00019726,2]
[380542318,1755804644890,-480.0,0.00019726,2]
[380542320,1755804644899,-3695.25,0.00019726,2]
[380542322,1755804644909,-480.0,0.00019726,2]
[380542324,1755804644919,-807.99,0.00019726,2]
[380542326,1755804644930,-1089.82,0.00019726,2]
[380542328,1755804644939,-480.0,0.00019726,2]
[380542330,1755804644948,-480.0,0.00019726,2]
[380542332,1755804644957,-589.21,0.00019726,2]
[380542334,1755804644967,-480.0,0.00019726,2]
[380542336,1755804644976,-1576.4,0.00019726,2]
[380542338,1755804644985,-490.88,0.00019726,2]
[380542340,1755804644994,-480.0,0.00019726,2]
[380542342,1755804645003,-633.84,0.00019726,2]
[380542344,1755804645012,-3977.75,0.00019726,2]
[380542345,1755804645021,-480.0,0.00019726,2]
[380542347,1755804645031,-480.0,0.00019726,2]
[380542349,1755804645040,-699.28,0.00019726,2]
[380542351,1755804645049,-480.0,0.00019726,2]
[380542353,1755804645059,-950.77,0.00019726,2]
[380542355,1755804645068,-480.0,0.00019726,2]
[380542357,1755804645077,-480.0,0.00019726,2]
[380542359,1755804645087,-480.0,0.00019726,2]
[380542361,1755804645097,-480.0,0.00019726,2]
[380542363,1755804645106,-480.0,0.00019726,2]
[380542365,1755804645115,-480.0,0.00019726,2]
[380542367,1755804645125,-480.0,0.00019726,2]
[380542369,1755804645134,-329.93817145,0.00019726,2]
[380542371,1755804645143,-480.0,0.00019726,2]
[380542373,1755804645153,-480.0,0.00019726,2]
[380542375,1755804645163,-2794.42,0.00019726,2]
[380542377,1755804645172,-1131.25,0.00019726,2]
[380542379,1755804645184,-480.0,0.00019726,2]
[380542381,1755804645194,-903.44,0.00019726,2]
[380542383,1755804645204,-480.0,0.00019726,2]
[380542385,1755804645213,-480.0,0.00019726,2]
[380542387,1755804645222,-480.0,0.00019726,2]
[380542389,1755804645232,-570.5,0.00019726,2]
[380542391,1755804645241,-581.32,0.00019726,2]
[380542393,1755804645251,-480.0,0.00019726,2]
[380542395,1755804645260,-522.59,0.00019726,2]
[380542397,1755804645269,-500.0,0.00019726,2]
[380542399,1755804645278,-500.0,0.0001976,2]
[380542401,1755804645287,-250.0,0.00019865,2]
[380542403,1755804645297,-584.38,0.00019899,2]
[380542405,1755804645306,-8600.14264352,0.000199,2]
[380542407,1755804645316,-500.0,0.00019974,2]
[380542409,1755804645325,-1188.9376645,0.00019976,2]
[380542411,1755804645334,-100000.0,0.0001999,2]
[380542413,1755804645344,-584.38,0.00019996,2]
[380542415,1755804645353,-584.38,0.00019999,2]
[380542418,1755804645363,-584.38,0.00019999,2]
[380542420,1755804645372,-151.0,0.0002,2]
[380542423,1755804645382,-557.0,0.0002,2]
[380542426,1755804645392,-151.0,0.0002,2]
[380542429,1755804645402,-447.72542831,0.0002,2]
[380542431,1755804645411,-406.0,0.0002,2]
[380542434,1755804645421,-998.0,0.0002,2]
[380542436,1755804645432,-286.74543599,0.0002,2]
[380542438,1755804645442,-151.0,0.0002,2]
[380542440,1755804645451,-151.0,0.0002,2]
[380542442,1755804645460,-151.87492624,0.0002,2]
[380542444,1755804645469,-151.0,0.0002,2]
[380542446,1755804645479,-480.0,0.0002,2]
[380542449,1755804645491,-480.0,0.0002,2]
[380542450,1755804645500,-480.0,0.0002,2]
[380542452,1755804645510,-480.0,0.0002,2]
[380542454,1755804645520,-480.0,0.0002,2]
[380542456,1755804645530,-480.0,0.0002,2]
[380542458,1755804645539,-480.0,0.0002,2]
[380542460,1755804645549,-535.16,0.0002,2]
[380542462,1755804645559,-480.0,0.0002,2]
[380542464,1755804645569,-480.0,0.0002,2]
[380542466,1755804645580,-480.0,0.0002,2]
[380542468,1755804645589,-214.37,0.0002,2]
[380542470,1755804645599,-480.0,0.0002,2]
[380542472,1755804645609,-480.0,0.0002,2]
[380542474,1755804645619,-480.0,0.0002,2]
[380542476,1755804645628,-480.0,0.0002,2]
[380542478,1755804645637,-999.07,0.0002,2]
[380542480,1755804645646,-432.75354745,0.0002,2]
[380542482,1755804645656,-329.19,0.0002,2]
[380542484,1755804645666,-480.0,0.0002,2]
[380542486,1755804645675,-480.0,0.0002,2]
[380542488,1755804645687,-846.21,0.0002,2]
[380542490,1755804645696,-480.0,0.0002,2]
[380542492,1755804645706,-1141.39,0.0002,2]
[380542494,1755804645715,-480.0,0.0002,2]
[380542496,1755804645724,-480.0,0.0002,2]
[380542498,1755804645735,-480.0,0.0002,2]
[380542499,1755804645744,-497.27,0.0002,2]
[380542501,1755804645753,-480.0,0.0002,2]
[380542503,1755804645762,-482.71,0.0002,2]
[380542505,1755804645772,-480.0,0.0002,2]
[380542507,1755804645781,-1996.08,0.0002,2]
[380542509,1755804645790,-480.0,0.0002,2]
[380542511,1755804645799,-453.96943511,0.0002,2]
[380542513,1755804645808,-1366.68,0.0002,2]
[380542515,1755804645817,-809.45,0.0002,2]
[380542517,1755804645829,-480.0,0.0002,2]
[380542519,1755804645838,-480.0,0.0002,2]
[380542521,1755804645847,-480.0,0.0002,2]
[380542523,1755804645856,-480.0,0.0002,2]
[380542525,1755804645866,-480.0,0.0002,2]
[380542527,1755804645876,-3695.25,0.0002,2]
[380542529,1755804645885,-476.92979116,0.0002,2]
[380542531,1755804645895,-807.99,0.0002,2]
[380542532,1755804645906,-1089.82,0.0002,2]
[380542534,1755804645916,-480.0,0.0002,2]
[380542536,1755804645925,-165.82375299,0.0002,2]
[380542538,1755804645936,-480.0,0.0002,2]
[380542540,1755804645945,-1576.4,0.0002,2]
[380542542,1755804645954,-480.0,0.0002,2]
[380542544,1755804645963,-633.84,0.0002,2]
[380542546,1755804645973,-3977.75,0.0002,2]
[380542548,1755804645983,-480.0,0.0002,2]
[380542550,1755804645993,-480.0,0.0002,2]
[380542552,1755804646003,-699.28,0.0002,2]
[380542554,1755804646012,-950.77,0.0002,2]
[380542556,1755804646021,-480.0,0.0002,2]
[380542558,1755804646032,-480.0,0.0002,2]
[380542560,1755804646041,-480.0,0.0002,2]
[380542562,1755804646050,-480.0,0.0002,2]
[380542564,1755804646060,-480.0,0.0002,2]
[380542566,1755804646069,-489.05,0.0002,2]
[380542568,1755804646079,-480.0,0.0002,2]
[380542570,1755804646088,-2794.42,0.0002,2]
[380542572,1755804646098,-1131.25,0.0002,2]
[380542574,1755804646107,-174.93,0.0002,2]
[380542576,1755804646116,-903.44,0.0002,2]
[380542578,1755804646126,-490.38,0.0002,2]
[380542580,1755804646135,-480.0,0.0002,2]
[380542581,1755804646145,-480.0,0.0002,2]
[380542583,1755804646154,-581.32,0.0002,2]
[380542585,1755804646163,-522.59,0.0002,2]
[380542587,1755804646172,-500.0,0.00020045,2]
[380542589,1755804646182,-500.0,0.00020045,2]
[380542591,1755804646191,-500.0,0.00020045,2]
[380542593,1755804646201,-500.0,0.00020051,2]
[380542595,1755804646210,-500.0,0.00020051,2]
[380542597,1755804646220,-151.0,0.00020106,2]
[380542599,1755804646229,-2030.296672,0.00020106,2]
[380542601,1755804646238,-505.69879824,0.0002011,2]
[380542603,1755804646247,-2105.41764886,0.00020161,2]
[380542605,1755804646257,-151.0,0.000202,3]
[380542607,1755804646267,-151.0,0.000202,3]
[380542609,1755804646276,-2183.31810187,0.00020216,2]
[380542611,1755804646286,-12690.45384448,0.00020217,2]
[380542613,1755804646295,-215.86710461,0.00020217,2]
[380542615,1755804646305,-160.0,0.00020217,2]
[380542616,1755804646314,-528.88070896,0.00020217,2]
[380542618,1755804646323,-160.0,0.00020217,2]
[380542620,1755804646332,-160.0,0.00020217,2]
[380542622,1755804646341,-160.0,0.00020217,2]
[380542624,1755804646350,-160.0,0.00020217,2]
[380542626,1755804646360,-160.0,0.00020217,2]
[380542628,1755804646369,-160.0,0.00020217,2]
[380542630,1755804646380,-232.28399145,0.00020217,2]
[380542632,1755804646389,-376.00439007,0.00020217,2]
[380542634,1755804646398,-216.95272161,0.00020217,2]
[380542636,1755804646407,-844.19128999,0.00020217,2]
[380542638,1755804646416,-160.0,0.00020217,2]
[380542640,1755804646425,-584.38,0.0002027,2]
[380542642,1755804646435,-2264.10087164,0.00020271,2]
[380542644,1755804646445,-584.38,0.00020271,2]
[380542646,1755804646454,-584.38,0.00020272,2]
[380542648,1755804646463,-584.38,0.00020272,2]
[380542650,1755804646474,-480.0,0.00020273,2]
[380542652,1755804646484,-480.0,0.00020273,2]
[380542653,1755804646493,-480.0,0.00020273,2]
[380542655,1755804646503,-480.0,0.00020273,2]
[380542657,1755804646512,-268.55,0.00020273,2]
[380542659,1755804646521,-480.0,0.00020273,2]
[380542661,1755804646530,-480.0,0.00020273,2]
[380542663,1755804646539,-535.16,0.00020273,2]
[380542665,1755804646548,-480.0,0.00020273,2]
[380542667,1755804646557,-480.0,0.00020273,2]
[380542669,1755804646566,-480.0,0.00020273,2]
[380542671,1755804646575,-480.0,0.00020273,2]
[380542673,1755804646585,-262.81,0.00020273,2]
[380542675,1755804646594,-480.0,0.00020273,2]
[380542677,1755804646604,-480.0,0.00020273,2]
[380542679,1755804646613,-999.07,0.00020273,2]
[380542681,1755804646623,-480.0,0.00020273,2]
[380542683,1755804646633,-480.0,0.00020273,2]
[380542685,1755804646642,-846.21,0.00020273,2]
[380542687,1755804646652,-480.0,0.00020273,2]
[380542689,1755804646662,-1141.39,0.00020273,2]
[380542691,1755804646671,-480.0,0.00020273,2]
[380542693,1755804646680,-480.0,0.00020273,2]
[380542695,1755804646690,-480.0,0.00020273,2]
[380542697,1755804646699,-497.27,0.00020273,2]
[380542699,1755804646708,-480.0,0.00020273,2]
[380542701,1755804646717,-482.71,0.00020273,2]